Cogmind - Beta 13 X2 --- EXPLORER MODE // 2024.01.26 @ 12:21:15 // Winter2019/RPGLIKE Player: Hermelin Result: Destroyed by 0Z-M9U(g) with Heavy Beamcaster Performance ------------- Evolutions (6) 3000 Regions Visited (19) 3800 Robots Destroyed (236) 1180 Value Destroyed (9889) 9889 Prototype IDs (61) 1220 Alien Tech Used (0) 0 Bonus (1630) 1630 TOTAL SCORE: 20719 Bonus ------- High Alert Combat Kills 973 Follower Combat Kills 677 Entered Garrisons 600 Used RIF Installer 1500 Entered DSFs 500 Aligned with FarCom 300 Friendly Fire -2920 Cogmind --------- Core Integrity 0/750 Matter 1427/1800 Energy 0/170 System Corruption 0% Temperature Critical (615) Movement Walking (180) Ox1 Location -4/Warlord Parts ------- > --- POWER (2) -------- Light Neutrino Core Light Antimatter Reactor > --- PROPULSION (2) --- Biometal Leg Biometal Leg > --- UTILITY (14) ----- Power Amplifier YI-UF0's Bottomless Matter Pit Advanced Signal Interpreter Transport Network Coupler Weapon Mount Improved Phase Shifter Improved Focal Shield Improved Thermal Shield Improved Shock Absorption System Advanced Shield Generator Hacking Suite Hacking Suite Relay Coupler [NC] (136) Advanced System Restoration Module > --- WEAPON (3) ------- Heavy Beamcaster Quantum Rifle Micro-nuke Launcher > --- INVENTORY (6) ---- Advanced Remote Datajack Peak State ------------ > --- POWER ------------ Light Neutrino Core Light Antimatter Reactor > --- PROPULSION ------- Biometal Leg Biometal Leg > --- UTILITY ---------- Power Amplifier Experimental Sensor Array Advanced Signal Interpreter Transport Network Coupler Weapon Mount Improved Phase Shifter Improved Focal Shield Improved Thermal Shield Advanced Shield Generator Hacking Suite Hacking Suite Advanced System Restoration Module Advanced Trap Extractor > --- WEAPON ----------- Quantum Rifle AWS/Gauss > --- INVENTORY -------- YI-UF0's Bottomless Matter Pit Relay Coupler [NC] Micro-nuke Launcher Advanced Remote Datajack Centrium Greatsword [Rating: 126] Favorites ----------- Power Micro Nuclear Core Engine Backup Power I Power Core Micro Nuclear Core Reactor Light Antimatter Reactor Propulsion Biometal Leg Treads Heavy Treads Leg Biometal Leg Wheel Wheel Hover Unit Backup Propulsion I Flight Unit Improved Cesium-ion Thruster Utility Experimental Sensor Array Device Experimental Sensor Array Storage YI-UF0's Bottomless Matter Pit Processor Improved Signal Interpreter Hackware Hacking Suite Protection Improved Light Armor Plating Weapon Centrium Greatsword Energy Gun Cooled Pulse Rifle Energy Cannon Heavy Particle Cannon Ballistic Gun AWS/Gauss Launcher Scatter Rocket Array Special Weapon Enhanced Flamer Slashing Weapon Centrium Greatsword Special Melee Weapon Improved Datajack Build | -11 -10 -10 -10 -9 -8 -8 -8 -8 -8 -8 -6 -6 -5 -4 -4 -4 -4 -4 -4 ------- Run | Yrd Mat Min Exi Min Mat Gar Mat Sto Gar Rec Fac DSF Fac Fac Gar Fac Upp Upp War Slots Evolved 17 | 3 1 2 . . 5 1 1 . . 1 . 1 . . 1 . . 1 . Power 1 | . . . . . 1 . . . . . . . . . . . . . . Propulsion 1 | 1 . . . . . . . . . . . . . . . . . . . Utility 13 | 1 1 2 . . 3 1 1 . . 1 . 1 . . 1 . . 1 . Weapon 2 | 1 . . . . 1 . . . . . . . . . . . . . . Parts Attached 129 | 8 5 4 . 5 31 21 9 3 4 1 . 7 3 1 13 2 5 5 2 Power 9 | 1 . . . . 3 1 . . . . . . . . 3 1 . . . Engine 2 | 1 . . . . 1 . . . . . . . . . . . . . . Core 6 | . . . . . 2 1 . . . . . . . . 2 1 . . . Reactor 1 | . . . . . . . . . . . . . . . 1 . . . . Propulsion 16 | 3 . . . . 6 3 3 . . . . . . . . . . 1 . Treads 3 | 2 . . . . . 1 . . . . . . . . . . . . . Leg 8 | . . . . . 3 2 2 . . . . . . . . . . 1 . Wheel 3 | 1 . . . . 2 . . . . . . . . . . . . . . Hover 1 | . . . . . 1 . . . . . . . . . . . . . . Flight 1 | . . . . . . . 1 . . . . . . . . . . . . Utility 64 | 2 4 2 . 4 10 12 4 . 2 1 . 7 3 . 8 1 1 1 2 Device 34 | 1 2 1 . 2 2 10 2 . 1 1 . 3 1 . 6 . . 1 1 Storage 4 | . . . . 1 1 1 . . . . . . . . . . . . 1 Processor 9 | 1 2 . . . 3 . 1 . . . . . 1 . . 1 . . . Hackware 13 | . . 1 . . 2 . 1 . 1 . . 4 1 . 2 . 1 . . Protection 4 | . . . . 1 2 1 . . . . . . . . . . . . . Artifact . | . . . . . . . . . . . . . . . . . . . . Weapon 40 | 2 1 2 . 1 12 5 2 3 2 . . . . 1 2 . 4 3 . Energy Gun 12 | . 1 . . . 6 2 . . . . . . . . 1 . 1 1 . Energy Cannon 1 | . . . . . . . . 1 . . . . . . . . . . . Ballistic Gun 5 | 2 . . . . . . . . 1 . . . . . 1 . 1 . . Ballistic Cannon . | . . . . . . . . . . . . . . . . . . . . Launcher 10 | . . 1 . 1 2 . . 2 1 . . . . 1 . . . 2 . Special Weapon 9 | . . 1 . . 4 2 . . . . . . . . . . 2 . . Impact Weapon . | . . . . . . . . . . . . . . . . . . . . Slashing Weapon 2 | . . . . . . 1 1 . . . . . . . . . . . . Piercing Weapon . | . . . . . . . . . . . . . . . . . . . . Special Melee Weapon 1 | . . . . . . . 1 . . . . . . . . . . . . Unidentified Prototypes 11 | . . . . 2 1 3 1 1 . . . . . 1 . 1 1 . . Corrupted Parts 5 | . . . . 1 . 4 . . . . . . . . . . . . . System Corruption 11 | . . . . 1 . 10 . . . . . . . . . . . . . Parts Lost 1 | . . . . . . . . . . . . . . . 1 . . . . Power 1 | . . . . . . . . . . . . . . . 1 . . . . Propulsion . | . . . . . . . . . . . . . . . . . . . . Utility . | . . . . . . . . . . . . . . . . . . . . Weapon . | . . . . . . . . . . . . . . . . . . . . Highest Loss Streak 1 | . . . . . . . . . . . . . . . 1 . . . . To Critical Strikes . | . . . . . . . . . . . . . . . . . . . . Average Slot Usage (%) 95 | . 99 100 100 99 98 96 91 93 94 93 94 93 94 94 93 95 95 94 99 Engine 2 | . 12 10 10 10 3 . . . . . . . . . . . . . . Core 7 | . . . . . 7 12 11 11 11 11 11 10 10 10 8 5 5 4 4 Leg 8 | . . . . . 8 9 11 11 11 11 11 10 10 10 10 10 10 9 9 Hover 3 | . 12 21 20 20 3 . . . . . . . . . . . . . . Device 36 | . 14 17 20 27 25 30 47 47 47 48 50 51 46 42 43 45 44 40 41 Storage 1 | . . . . . 6 4 . . . . . . . . . . . . . Processor 7 | . 12 10 10 7 6 6 6 5 5 5 5 5 10 10 10 10 10 9 9 Hackware 5 | . . 6 10 5 6 5 . 5 5 5 5 5 5 10 10 10 10 14 14 Protection 3 | . 5 10 10 9 7 8 . . . . . . . . . . . . . Energy Gun 4 | . 10 9 . . 8 10 . . . . . . . . 1 5 5 4 9 Ballistic Gun 1 | . 15 . . . . . . . . . . . . . 1 5 5 1 . Launcher 2 | . . 5 10 10 2 . . 3 4 5 5 5 5 5 3 . . 2 4 Special Weapon 3 | . . 6 10 10 8 4 4 . . . . . . . . . . . . Slashing Weapon 2 | . . . . . . 1 5 5 5 5 5 5 5 5 3 . . . . Naked Turns . | . . . . . . . . . . . . . . . . . . . . Heaviest Build 74 | 9 10 9 9 25 37 59 51 54 54 55 55 57 54 54 58 60 60 66 74 Greatest Support 75 | 40 12 12 12 12 45 75 61 61 61 61 61 61 61 61 61 61 61 66 66 Greatest Overweight (x) 2 | 1 . . . 2 2 1 1 . . . . . . . . . . 1 1 Average Overweight (x) . | . . . . . . . . . . . . . . . . . . . . Largest Inventory Capacity 6 | 2 2 4 4 4 4 5 5 5 5 5 5 5 5 5 6 6 6 6 6 Average Capacity 4 | 2 2 3 4 4 4 4 5 5 5 5 5 5 5 5 5 6 6 6 6 Most Carried 6 | 2 2 4 4 4 4 5 5 5 5 5 5 5 5 5 6 6 6 6 3 Average Carried 4 | . 1 3 3 3 3 4 4 5 4 5 5 4 4 5 4 5 5 5 2 Final Capacity 6 | 2 2 4 4 4 4 5 5 5 5 5 5 5 5 5 6 6 6 6 6 Final Carried 6 | 2 2 4 4 4 4 5 5 5 5 5 5 5 5 5 6 6 6 3 1 Class Distribution -------------------- 41% | Hacker-Gladiator 17% | Wizard-Tank 12% | Hacker-Scout 10% | Hacker-Tank 8% | Hacker-Skirmisher 4% | Hacker-Mutant 4% | Wizard-Gladiator Dominant Class ---------------- Hacker-Mutant | -10/Materials Hacker-Scout | -10/Mines Hacker-Scout | -10/Exiles Hacker-Scout | -9/Mines Hacker-Tank | -8/Materials Wizard-Tank | -8/Garrison Hacker-Gladiator | -8/Materials Hacker-Gladiator | -8/Storage Hacker-Gladiator | -8/Garrison Hacker-Gladiator | -8/Recycling Hacker-Gladiator | -6/Factory Hacker-Gladiator | -6/DSF Hacker-Gladiator | -5/Factory Wizard-Gladiator | -4/Factory Wizard-Gladiator | -4/Garrison Wizard-Tank | -4/Factory Wizard-Tank | -4/Upper Caves Wizard-Skirmisher | -4/Upper Caves Wizard-Tank | -4/Warlord Resources | -11 -10 -10 -10 -9 -8 -8 -8 -8 -8 -8 -6 -6 -5 -4 -4 -4 -4 -4 -4 ----------- Run | Yrd Mat Min Exi Min Mat Gar Mat Sto Gar Rec Fac DSF Fac Fac Gar Fac Upp Upp War Matter Collected 3731 | 296 199 77 . 182 1735 237 125 30 98 10 . 70 30 10 152 . 66 97 317 Remotely . | . . . . . . . . . . . . . . . . . . . . Salvage Created 9420 | 84 738 72 . 86 780 1372 1393 836 845 786 . 536 123 . 1198 29 361 76 105 Parts 532 | 5 48 12 . 7 36 79 70 55 37 34 . 25 6 . 67 6 21 17 7 Haulers Intercepted 17 | . 2 . . . 3 . 5 5 . 1 . . 1 . . . . . . Recyclers Shooed . | . . . . . . . . . . . . . . . . . . . . Parts Field Recycled . | . . . . . . . . . . . . . . . . . . . . Retrieved Matter . | . . . . . . . . . . . . . . . . . . . . Parts Self-Destructed . | . . . . . . . . . . . . . . . . . . . . Prevented . | . . . . . . . . . . . . . . . . . . . . Kills | -11 -10 -10 -10 -9 -8 -8 -8 -8 -8 -8 -6 -6 -5 -4 -4 -4 -4 -4 -4 ------- Run | Yrd Mat Min Exi Min Mat Gar Mat Sto Gar Rec Fac DSF Fac Fac Gar Fac Upp Upp War Combat Hostiles Destroyed 196 | . 16 4 . 4 21 30 19 15 17 12 . 6 . . 26 4 8 11 3 Melee 90 | . . . . . . 3 19 15 17 12 . 6 . . 18 . . . . Guns 73 | . 16 . . . 12 23 . . . . . . . . 8 4 8 1 1 Cannons 11 | . . 2 . 3 4 2 . . . . . . . . . . . . . AOE 14 | . . 2 . . . . . . . . . . . . . . . 10 2 Classes Destroyed 21 | 2 4 1 . . 4 2 2 . . 2 . 1 . . 1 . 1 1 . Worker 2 | . . . . . . . 1 1 . . . . . . . . . . . Builder 1 | . . . . . . . 1 . . . . . . . . . . . . Tunneler 1 | 1 . . . . . . . . . . . . . . . . . . . Hauler 17 | . 2 . . . 3 . 5 5 . 1 . . 1 . . . . . . Recycler 3 | 1 . 1 . 1 . . . . . . . . . . . . . . . Operator 3 | . . . . . 1 . . 1 . . . . 1 . . . . . . Watcher 9 | . 3 . . . 1 . 4 1 . . . . . . . . . . . Swarmer 44 | . 6 2 . 2 2 . 3 1 . . . . . . 10 3 5 10 . Cutter 4 | . . . . . . 2 . . . . . . . . 2 . . . . Grunt 63 | . 10 . . 2 8 15 8 3 11 1 . . . . 5 . . . . Brawler 3 | . . . . . 1 1 . . . 1 . . . . . . . . . Duelist 2 | . . . . . 1 . . . . 1 . . . . . . . . . Protector 1 | . . . . . . . . . . 1 . . . . . . . . . Sentry 54 | . . 2 . . 8 10 8 11 3 5 . . . . 5 1 1 . . Specialist 3 | . . . . . . 1 . . 2 . . . . . . . . . . Hunter 11 | . . . . . 2 1 . . 1 . . 5 . . 1 . 1 . . Programmer 4 | . . . . . . . . . . 2 . . . . 2 . . . . Heavy 1 | . . . . . . . . . . . . 1 . . . . . . . Behemoth 1 | . . . . . . . . . . . . . . . 1 . . . . Master Thief 1 | . . . . . . . . . . . . . . . . . . 1 . Thug 3 | . . . . . . . . . . . . . . . . . . 1 2 Butcher 2 | . . . . . . . . . . 1 . . . . . . . . 1 Mutant 1 | . . . . . . . . . . . . . . . . . 1 . . Best Kill Streak 10 | 2 5 2 . 2 6 5 4 5 5 10 . 3 1 . 7 3 3 4 3 Combat Bots Only 10 | . 4 2 . 2 5 5 3 4 5 10 . 3 . . 7 3 3 4 3 Max Kills in Single Turn 3 | 1 1 1 . 1 2 2 1 1 1 1 . 1 1 . 1 1 1 3 2 Gunslinging 1 | . . . . . . 1 . . . . . . . . . . . . . Exploded 3 | . . 1 . . . . . . . . . . . . . . . 3 2 Melee 1 | . . . . . . 1 1 1 1 1 . 1 . . 1 . . . . Uniques/NPCs Destroyed 2 | . . 1 . . . 1 . . . . . . . . . . . . . YI-UF0 (-10/Mines) HV-R5K (-8/Garrison) Combat | -11 -10 -10 -10 -9 -8 -8 -8 -8 -8 -8 -6 -6 -5 -4 -4 -4 -4 -4 -4 -------- Run | Yrd Mat Min Exi Min Mat Gar Mat Sto Gar Rec Fac DSF Fac Fac Gar Fac Upp Upp War Hostile Shots Fired 1226 | . 60 17 . 11 155 158 86 84 88 48 . 64 . . 304 13 24 37 77 Missed 330 | . 17 3 . 6 44 42 27 27 15 14 . 12 . . 83 4 7 18 11 Damage Taken 6169 | . 266 124 . 75 936 701 266 183 308 219 . 332 87 . 1542 45 66 81 938 Core 4561 | . 205 91 . 44 641 445 201 135 232 167 . 252 67 . 1180 33 48 61 759 Absorbed by Shields 1606 | . . . . . 122 308 128 96 146 100 . 136 31 . 416 22 31 38 32 Redirected to Core 3868 | . 149 63 . 33 562 374 167 107 207 129 . 235 67 . 1035 30 42 46 622 Ignored by Resistances 8718 | . 181 81 . 44 644 797 546 486 755 259 . 746 167 . 2965 108 162 299 478 Regen/Repaired (Parts) 4 | . . . . . 3 . 1 . . . . . . . . . . . . Core Remaining (%) 89 | 100 . . . 95 . . . . . 89 . 86 75 . . . . . . Volleys Fired 343 | 4 43 28 1 13 86 103 2 . 3 . . . . . 19 3 10 13 15 Largest 3 | 2 2 2 1 1 3 3 1 . 1 . . . . . 1 1 1 1 2 Hottest 175 | 40 70 80 30 80 120 120 10 . 50 . . . . . 94 94 94 94 175 Shots Fired 632 | 8 86 33 1 14 145 187 2 . 3 . . . . . 72 21 29 15 16 Gun 508 | 8 86 23 . . 92 173 . . 2 . . . . . 63 21 27 3 10 Cannon . | . . . . . . . . . . . . . . . . . . . . Launcher 33 | . . 2 1 2 . . . . 1 . . . . . 9 . . 12 6 Special 91 | . . 8 . 12 53 14 2 . . . . . . . . . 2 . . Kinetic 175 | 8 73 . . . . . . . 2 . . . . . 53 18 19 2 . Thermal 384 | . 8 26 . 12 145 161 . . . . . . . . 10 3 8 1 10 Explosive 24 | . . 2 1 2 . . . . 1 . . . . . . . . 12 6 Electromagnetic 45 | . 5 5 . . . 26 . . . . . . . . 9 . . . . Robot Hit Streak 46 | 6 19 30 . 12 46 31 5 . . . . . . . 20 18 26 33 4 Robot Miss Streak 3 | . 2 1 . 3 1 1 . . . . . . . . 1 1 . 1 1 Penetration Max 1 | . . . . . . . . . . . . . . . 1 . . . . Secondary Targets 7 | . 2 . . . 2 2 . . . . . . . . . . . . 1 Max Gunslinging Chain 1 | . 1 . . . 1 1 . . . . . . . . . . . . 1 Autonomous 93 | . . . . . . . . . . . . . . . 53 18 19 3 . Shots Hit Robots 777 | 6 70 30 . 11 125 144 60 59 40 20 . 27 2 . 123 18 26 12 4 Core Hits 351 | 3 34 16 . 8 46 59 26 20 15 13 . 8 1 . 43 7 13 26 13 Critical Kills 2 | . . . . . . . . . . . . . . . . 1 1 . . Critical Parts Destroyed . | . . . . . . . . . . . . . . . . . . . . Critical Strikes 69 | . . 1 . 2 11 6 11 9 7 . . 3 . . 17 1 1 . . Burn 17 | . . 1 . 2 11 3 . . . . . . . . . . . . . Destroy 2 | . . . . . . . . . . . . . . . . 1 1 . . Sever 50 | . . . . . . 3 11 9 7 . . 3 . . 17 . . . . Melee Attacks 325 | . . . . . . 16 64 69 53 20 . 27 3 2 71 . . . . Impact . | . . . . . . . . . . . . . . . . . . . . Slashing 310 | . . . . . . 16 59 59 53 20 . 27 3 2 71 . . . . Piercing . | . . . . . . . . . . . . . . . . . . . . Sneak Attacks 35 | . . . . . . . 14 15 2 3 . . 1 . . . . . . Combat Hostiles 6 | . . . . . . . 2 . 2 2 . . . . . . . . . Follow-up Attacks . | . . . . . . . . . . . . . . . . . . . . Damage Inflicted 31709 | 68 766 415 5 189 2058 3001 4458 3852 3035 1578 . 2037 221 . 5927 582 655 1983 879 Guns 7424 | 68 766 203 . . 1505 2181 . . . . . . . . 1371 552 655 74 49 Cannons . | . . . . . . . . . . . . . . . . . . . . Explosions 3222 | . . 123 5 78 . 76 . . . . . . . . 201 . . 1909 830 Melee 20203 | . . . . . . 667 4458 3852 3035 1578 . 2037 221 . 4355 . . . . Ramming 30 | . . . . . . . . . . . . . . . . 30 . . . Kinetic 3100 | 68 645 . . . . . . . . . . . . . 1371 465 504 47 . Thermal 4940 | . 53 233 . 111 2058 2171 . . . . . . . . . 87 151 27 49 Explosive 2945 | . . 123 5 78 . . . . . . . . . . . . . 1909 830 Electromagnetic 491 | . 68 59 . . . 163 . . . . . . . . 201 . . . . Impact . | . . . . . . . . . . . . . . . . . . . . Slashing 20203 | . . . . . . 667 4458 3852 3035 1578 . 2037 221 . 4355 . . . . Piercing . | . . . . . . . . . . . . . . . . . . . . Highest Corruption 7 | . 1 1 1 2 1 7 . . . . . . . . . . . . . Average Corruption 1 | . 1 1 1 1 1 1 . . . . . . . . . . . . . Corruption Purged 11 | . . . . . . 11 . . . . . . . . . . . . . Corruption Blocked . | . . . . . . . . . . . . . . . . . . . . Effects 37 | . 3 7 3 10 . 14 . . . . . . . . . . . . . Message Errors 12 | . . 1 1 3 . 7 . . . . . . . . . . . . . Matter Fused 8 | . 1 3 1 1 . 2 . . . . . . . . . . . . . Heat Flow Errors 5 | . 1 1 . 1 . 2 . . . . . . . . . . . . . Energy Discharges 2 | . . . . 1 . 1 . . . . . . . . . . . . . Data Loss (minor) 5 | . . 1 1 2 . 1 . . . . . . . . . . . . . Data Loss (major) 1 | . . . . 1 . . . . . . . . . . . . . . . Misfires 3 | . 1 . . 1 . 1 . . . . . . . . . . . . . Alerts 1 | . . 1 . . . . . . . . . . . . . . . . . Overload Shots . | . . . . . . . . . . . . . . . . . . . . Overflow Damage 1981 | . . 20 . . 2 . 452 527 266 163 . 246 31 . 132 . . 142 . Projectiles 2 | . . . . . 2 . . . . . . . . . . . . . . Explosions 162 | . . 20 . . . . . . . . . . . . . . . 142 . Melee 1817 | . . . . . . . 452 527 266 163 . 246 31 . 132 . . . . Knockbacks 1 | . . . . . . . . . . . . . . . . 1 . . . Impact 1 | . . . . . . . . . . . . . . . . 1 . . . Kinetic . | . . . . . . . . . . . . . . . . . . . . Secondary . | . . . . . . . . . . . . . . . . . . . . Self-Inflicted Damage 83 | . . 9 . 34 . 16 . . . . . . . . . . . 24 . Shots 5 | . . 1 . 1 . 1 . . . . . . . . . . . 2 . Rammed . | . . . . . . . . . . . . . . . . . . . . Targets Rammed 1 | . . . . . . . . . . . . . . . . 1 . . . Kicked 1 | . . . . . . . . . . . . . . . . 1 . . . Crushed . | . . . . . . . . . . . . . . . . . . . . Highest Temperature 711 | . 253 250 . 108 98 229 . . . . . . . . 356 159 234 206 711 Average Temperature 90 | . 46 32 . 13 22 80 . . . . . . . . 99 64 83 67 270 Received Heat Transfer 2848 | . 198 54 . 36 460 581 298 155 349 27 . . . . 366 12 12 12 288 Effects 21 | . . . . . . . . . . . . . . . 1 . . . 20 Shutdowns 5 | . . . . . . . . . . . . . . . . . . . 5 Energy Bleed 4 | . . . . . . . . . . . . . . . 1 . . . 3 Interference 3 | . . . . . . . . . . . . . . . . . . . 3 Short Circuit 2 | . . . . . . . . . . . . . . . . . . . 2 Damage (major) 6 | . . . . . . . . . . . . . . . . . . . 6 Damage (core) 1 | . . . . . . . . . . . . . . . . . . . 1 Siege Activations . | . . . . . . . . . . . . . . . . . . . . Robots Corrupted 1 | . . . . . . 1 . . . . . . . . . . . . . Combat Hostiles . | . . . . . . . . . . . . . . . . . . . . Parts Fried 3 | . . . . . . 3 . . . . . . . . . . . . . Impact Corruptions . | . . . . . . . . . . . . . . . . . . . . Robots Melted 10 | . . . . 1 7 2 . . . . . . . . . . . . . Combat Hostiles 8 | . . . . 1 5 2 . . . . . . . . . . . . . Parts Melted 36 | . . 1 . . 21 12 . . . . . . . . . 1 1 . . Heat Transferred 15808 | . 222 1392 . 1120 8062 4605 . . . . . . . . . 111 185 37 74 Parts Sabotaged . | . . . . . . . . . . . . . . . . . . . . Parts Stolen 4 | . . . . . . . . . . . . . . . . . . 4 . Parts Stripped . | . . . . . . . . . . . . . . . . . . . . Power Chain Reactions 1 | . . . . . . 1 . . . . . . . . . . . . . Missiles Intercepted . | . . . . . . . . . . . . . . . . . . . . Alert | -11 -10 -10 -10 -9 -8 -8 -8 -8 -8 -8 -6 -6 -5 -4 -4 -4 -4 -4 -4 ------- Run | Yrd Mat Min Exi Min Mat Gar Mat Sto Gar Rec Fac DSF Fac Fac Gar Fac Upp Upp War Peak Influence 1761 | 10 489 137 . 59 240 1761 826 222 745 627 490 434 198 74 924 519 . . . Initial 629 | . 4 77 . . 2 7 629 4 109 242 478 264 169 70 39 360 . . . Average 346 | 5 236 77 . 20 79 956 242 103 502 309 486 356 176 70 481 462 . . . Maximum Alert Level 5 | . 2 . . . 1 5 3 1 3 2 2 2 . . 3 2 . . . Low Security (%) 53 | 100 33 100 . 100 92 6 54 89 18 37 . . 100 100 30 . . . . Level 1 15 | . 56 . . . 7 6 25 10 16 30 . 68 . . 12 10 . . . Level 2 12 | . 9 . . . . 10 9 . 27 31 100 31 . . 28 89 . . . Level 3 11 | . . . . . . 31 10 . 37 . . . . . 29 . . . . Level 4 6 | . . . . . . 37 . . . . . . . . . . . . . Level 5 1 | . . . . . . 6 . . . . . . . . . . . . . High Security . | . . . . . . . . . . . . . . . . . . . . Max Security . | . . . . . . . . . . . . . . . . . . . . Squads Dispatched 15 | . 3 . . . 5 . 3 2 . . . 1 . 1 . . . . . Investigation 10 | . 3 . . . 3 . 3 1 . . . . . . . . . . . Extermination . | . . . . . . . . . . . . . . . . . . . . Reinforcement 4 | . . . . . 1 . . 1 . . . 1 . 1 . . . . . Assault . | . . . . . . . . . . . . . . . . . . . . Garrison 1 | . . . . . 1 . . . . . . . . . . . . . . Intercept . | . . . . . . . . . . . . . . . . . . . . Searches Triggered . | . . . . . . . . . . . . . . . . . . . . Construction Impeded . | . . . . . . . . . . . . . . . . . . . . Haulers Reinforced . | . . . . . . . . . . . . . . . . . . . . Active Scanning Responses . | . . . . . . . . . . . . . . . . . . . . Cargo Convoy Interrupts . | . . . . . . . . . . . . . . . . . . . . Stealth | -11 -10 -10 -10 -9 -8 -8 -8 -8 -8 -8 -6 -6 -5 -4 -4 -4 -4 -4 -4 --------- Run | Yrd Mat Min Exi Min Mat Gar Mat Sto Gar Rec Fac DSF Fac Fac Gar Fac Upp Upp War Distress Signals 7 | . . . . . 2 . 1 3 . . . . . . . 1 . . . Communications Jammed . | . . . . . . . . . . . . . . . . . . . . Distress Signals . | . . . . . . . . . . . . . . . . . . . . Times Spotted 299 | . 23 4 2 4 43 32 44 21 23 11 . 6 2 1 42 5 8 15 13 Peak Tracking Total 11 | . 4 2 11 2 5 7 4 4 5 9 . 2 1 1 5 4 3 4 11 Tactical Retreats 28 | . 1 . 1 . 1 3 8 1 3 . . . . . 10 . . . . Traps | -11 -10 -10 -10 -9 -8 -8 -8 -8 -8 -8 -6 -6 -5 -4 -4 -4 -4 -4 -4 ------- Run | Yrd Mat Min Exi Min Mat Gar Mat Sto Gar Rec Fac DSF Fac Fac Gar Fac Upp Upp War Traps Triggered 22 | . 1 . . . 4 2 1 1 3 . . 1 1 . 5 1 . . 2 Indirectly 3 | . . . . . . . . . . . . . . . 3 . . . . Trap Hack Attempts 16 | . . . . . . . 16 . . . . . . . . . . . . Triggered 1 | . . . . . . . 1 . . . . . . . . . . . . Disarmed . | . . . . . . . . . . . . . . . . . . . . Reprogrammed 29 | . . . . . 10 . 3 4 . . . . . . . 12 . . . Reused 3 | . . . . . . . . . . . . . . . . 3 . . . Traps Extracted 5 | . . . . . . . 3 . . . . . . . . . . . 2 Installed 4 | . . . . . . . . . . . . . . . . . . . 4 Triggered 3 | . . . . . . . . . . . . . . . . 3 . . . Most Traps Carried 4 | . . . . . . . 3 3 3 3 3 3 3 3 3 3 3 3 4 Machines | -11 -10 -10 -10 -9 -8 -8 -8 -8 -8 -8 -6 -6 -5 -4 -4 -4 -4 -4 -4 ---------- Run | Yrd Mat Min Exi Min Mat Gar Mat Sto Gar Rec Fac DSF Fac Fac Gar Fac Upp Upp War Machines Disabled 17 | . . . 1 . . 6 1 4 3 . . . . . . . 2 . . Max in Single Turn 1 | . . . 1 . . 1 . 1 1 . . . . . . . 1 . . Garrison Relay 5 | . . . . . . 5 . . . . . . . . . . . . . Phase Generator 1 | . . . . . . . . . 1 . . . . . . . . . . Machines Repaired . | . . . . . . . . . . . . . . . . . . . . Machines Dismantled . | . . . . . . . . . . . . . . . . . . . . Machines Sabotaged . | . . . . . . . . . . . . . . . . . . . . Overloaded Fab Kills . | . . . . . . . . . . . . . . . . . . . . Hacking | -11 -10 -10 -10 -9 -8 -8 -8 -8 -8 -8 -6 -6 -5 -4 -4 -4 -4 -4 -4 --------- Run | Yrd Mat Min Exi Min Mat Gar Mat Sto Gar Rec Fac DSF Fac Fac Gar Fac Upp Upp War Machines Accessed 93 | . 11 . 2 . 17 5 18 12 3 13 2 . 2 3 2 2 . 1 . Terminals 64 | . 8 . . . 11 5 12 10 3 6 2 . 1 2 2 1 . 1 . Fabricators 1 | . . . . . . . . . . . . . . . . 1 . . . Repair Stations 3 | . 1 . . . 1 . 1 . . . . . . . . . . . . Recycling Units 14 | . 2 . . . 2 . 2 1 . 7 . . . . . . . . . Scanalyzers 5 | . . . . . 2 . 2 . . . . . 1 . . . . . . Garrison Access 4 | . . . . . 1 . 1 1 . . . . . 1 . . . . . Total Hacks 386 | . 46 . 5 . 136 11 74 42 5 44 4 . 3 5 2 8 . 1 . Successful 306 | . 35 . 5 . 107 6 59 36 4 34 2 . 3 4 2 8 . 1 . Failed 80 | . 11 . . . 29 5 15 6 1 10 2 . . 1 . . . . . Catastrophic 2 | . . . . . . 1 . . . 1 . . . . . . . . . Database Lockouts . | . . . . . . . . . . . . . . . . . . . . Manual 198 | . 29 . 1 . 92 3 36 12 . 18 1 . . . . 5 1 . . Terminals 307 | . 39 . . . 115 11 54 37 5 29 4 . 1 4 2 5 . 1 . Fabricators 3 | . . . . . . . . . . . . . . . . 3 . . . Repair Stations 9 | . 3 . . . 4 . 2 . . . . . . . . . . . . Recycling Units 32 | . 4 . . . 4 . 7 2 . 15 . . . . . . . . . Scanalyzers 24 | . . . . . 12 . 10 . . . . . 2 . . . . . . Garrison Access 6 | . . . . . 1 . 1 3 . . . . . 1 . . . . . Terminal Hacks 184 | . 25 . 5 . 69 5 22 24 4 17 2 . 1 3 2 4 . 1 . Record 5 | . . . 4 . . . . . . . . . . . . . . 1 . Part Schematic 39 | . 2 . . . 23 . 1 3 . 10 . . . . . . . . . Robot Schematic 10 | . 4 . . . 2 . . 2 . 2 . . . . . . . . . Robot Analysis 14 | . 3 . . . 8 . 1 1 . . . . . 1 . . . . . Prototype ID Bank 31 | . 9 . . . 15 . 3 2 . 1 . . . 1 . . . . . Open Door 6 | . . . . . . 1 . 4 1 . . . . . . . . . . Open DSF 3 | . . . . . . . . . . . 1 . 1 1 . . . . . Level Access Points 3 | . 1 . . . . . 1 . . 1 . . . . . . . . . Branch Access Points 6 | . 1 . . . 2 . 1 1 . . . . . . . 1 . . . Emergency Access Points 5 | . . . . . 1 1 1 1 . . . . . . 1 . . . . Machine Index 4 | . 1 . . . . . 1 . . 1 1 . . . . . . . . Terminal Index 2 | . . . . . 1 . . 1 . . . . . . . . . . . Recycling Unit Index 1 | . . . . . . . . 1 . . . . . . . . . . . Unreport Threat 10 | . . . . . 3 . 4 1 . 2 . . . . . . . . . Locate Traps 14 | . 2 . . . 5 . 3 3 . . . . . . . 1 . . . Reprogram Traps 7 | . . . . . 3 . 1 1 . . . . . . . 2 . . . Recall Assault 1 | . . . . . 1 . . . . . . . . . . . . . . Hauler Manifests 1 | . . . . . 1 . . . . . . . . . . . . . . Registered Components 3 | . . . . . 1 . 1 1 . . . . . . . . . . . Registered Prototypes 2 | . . . . . 1 . . 1 . . . . . . . . . . . Zone Layout 9 | . 2 . . . 2 . 4 1 . . . . . . . . . . . Garrison Registry 2 | . . . . . . 1 . . 1 . . . . . . . . . . Patrol Navigation 1 | . . . . . . 1 . . . . . . . . . . . . . Security Stations 4 | . . . . . . 1 . . 2 . . . . . 1 . . . . Derelict Proto ID Bank 1 | . . . 1 . . . . . . . . . . . . . . . . Fabricator Hacks 2 | . . . . . . . . . . . . . . . . 2 . . . Load Schematic 1 | . . . . . . . . . . . . . . . . 1 . . . Build 1 | . . . . . . . . . . . . . . . . 1 . . . Repair Station Hacks 8 | . 2 . . . 4 . 2 . . . . . . . . . . . . Scan Component 3 | . . . . . 2 . 1 . . . . . . . . . . . . Repair 3 | . . . . . 2 . 1 . . . . . . . . . . . . Refit 2 | . 2 . . . . . . . . . . . . . . . . . . Recycling Unit Hacks 16 | . 2 . . . 2 . 4 1 . 7 . . . . . . . . . Report Inventory 13 | . 2 . . . 2 . 2 . . 7 . . . . . . . . . Retrieve Components 3 | . . . . . . . 2 1 . . . . . . . . . . . Scanalyzer 23 | . . . . . 12 . 9 . . . . . 2 . . . . . . Insert Component 8 | . . . . . 4 . 3 . . . . . 1 . . . . . . Analyze 15 | . . . . . 8 . 6 . . . . . 1 . . . . . . Garrison Access Hacks 4 | . . . . . 1 . 1 1 . . . . . 1 . . . . . Unlock Access 4 | . . . . . 1 . 1 1 . . . . . 1 . . . . . Unauthorized Hacks 69 | . 6 . . . 19 1 21 10 . 10 . . . . . 2 . . . Terminals 52 | . 4 . . . 17 1 18 8 . 3 . . . . . 1 . . . Track 16 | . 1 . . . 5 1 7 2 . . . . . . . . . . . Assimilate 3 | . . . . . 2 . 1 . . . . . . . . . . . . Botnet 26 | . 2 . . . 7 . 9 5 . 2 . . . . . 1 . . . Disrupt 2 | . . . . . 2 . . . . . . . . . . . . . . Operators 5 | . 1 . . . 1 . 1 1 . 1 . . . . . . . . . Fabricators 1 | . . . . . . . . . . . . . . . . 1 . . . Prioritize 1 | . . . . . . . . . . . . . . . . 1 . . . Repair Stations . | . . . . . . . . . . . . . . . . . . . . Recycling Units 15 | . 2 . . . 2 . 3 1 . 7 . . . . . . . . . Reject 2 | . . . . . . . 1 1 . . . . . . . . . . . Mask 1 | . . . . . . . 1 . . . . . . . . . . . . Tunnel 12 | . 2 . . . 2 . 1 . . 7 . . . . . . . . . Scanalyzers . | . . . . . . . . . . . . . . . . . . . . Garrison Access 1 | . . . . . . . . 1 . . . . . . . . . . . Reprogram 1 | . . . . . . . . 1 . . . . . . . . . . . Data Cores Recovered 1 | . . . . . . . . . . . . . 1 . . . . . . Used . | . . . . . . . . . . . . . . . . . . . . Hacking Detections 56 | . 9 . . . 11 4 12 7 2 6 1 . . 2 1 1 . . . Full Trace Events 14 | . 8 . . . 2 . 2 . . 2 . . . . . . . . . Feedback Events . | . . . . . . . . . . . . . . . . . . . . Feedback Blocked . | . . . . . . . . . . . . . . . . . . . . Robot Schematics Acquired 10 | . 4 . . . 2 . . 2 . 2 . . . . . . . . . Robots Built . | . . . . . . . . . . . . . . . . . . . . Authchips . | . . . . . . . . . . . . . . . . . . . . Time . | . . . . . . . . . . . . . . . . . . . . Total Robot Build Rating . | . . . . . . . . . . . . . . . . . . . . Part Schematics Acquired 47 | . 2 . . . 27 . 4 3 . 10 . . 1 . . . . . . Parts Built 2 | . . . . . . . . . . . . . . . . 2 . . . Authchips . | . . . . . . . . . . . . . . . . . . . . Time 95 | . . . . . . . . . . . . . . . . 95 . . . Total Part Build Rating 10 | . . . . . . . . . . . . . . . . 10 . . . Parts Repaired 3 | . . . . . 2 . 1 . . . . . . . . . . . . Time 219 | . . . . . 141 . 78 . . . . . . . . . . . . Parts Recycled . | . . . . . . . . . . . . . . . . . . . . Recycled Matter . | . . . . . . . . . . . . . . . . . . . . Retrieved Matter . | . . . . . . . . . . . . . . . . . . . . Retrieved Components 28 | . . . . . . . 18 10 . . . . . . . . . . . Parts Scanalyzed 8 | . . . . . 4 . 3 . . . . . 1 . . . . . . Part Schematics Acquired 8 | . . . . . 4 . 3 . . . . . 1 . . . . . . Parts Damaged 1 | . . . . . 1 . . . . . . . . . . . . . . Bothacking | -11 -10 -10 -10 -9 -8 -8 -8 -8 -8 -8 -6 -6 -5 -4 -4 -4 -4 -4 -4 ------------ Run | Yrd Mat Min Exi Min Mat Gar Mat Sto Gar Rec Fac DSF Fac Fac Gar Fac Upp Upp War Used RIF Installer 3 | . . . . . . 1 . . 1 . . . . . 1 . . . . Coupler Efficiency 1 | . . . . . . . . . 1 . . . . . . . . . . Zone Cloak 1 | . . . . . . . . . . . . . . . 1 . . . . Robots Hacked 11 | . . . . . . . 4 6 . . . . . . . . 1 . . Non-combat 10 | . . . . . . . 4 5 . . . . . . . . 1 . . Combat 1 | . . . . . . . . 1 . . . . . . . . . . . Robot Hacks Applied 13 | . . . . . . . 5 7 . . . . . . . . 1 . . parse_system 5 | . . . . . . . 2 2 . . . . . . . . 1 . . no_distress 4 | . . . . . . . 1 3 . . . . . . . . . . . ignore_repairs 1 | . . . . . . . 1 . . . . . . . . . . . . find_recycling 2 | . . . . . . . 1 1 . . . . . . . . . . . ignore_parts 1 | . . . . . . . . 1 . . . . . . . . . . . Relay Couplers Released 9 | . . . . . . 9 . . . . . . . . . . . . . Machine Destruction 9 | . . . . . . 9 . . . . . . . . . . . . . Attached 3 | . . . . . . . . . . . . . . . 2 . 1 . . Fabnet Peak Effective % . | . . . . . . . . . . . . . . . . . . . . Robots Rewired 5 | . . 1 . . 1 3 . . . . . . . . . . . . . Allies Hacked . | . . . . . . . . . . . . . . . . . . . . Hacks Repelled . | . . . . . . . . . . . . . . . . . . . . Allies | -11 -10 -10 -10 -9 -8 -8 -8 -8 -8 -8 -6 -6 -5 -4 -4 -4 -4 -4 -4 -------- Run | Yrd Mat Min Exi Min Mat Gar Mat Sto Gar Rec Fac DSF Fac Fac Gar Fac Upp Upp War Total Allies 19 | . . 2 . . 2 6 1 3 2 . . . . . . 3 . . . Largest Group 4 | . . 2 2 1 1 4 2 3 2 1 . . . . . 3 3 3 2 Highest-Rated Group 176 | . . 38 38 9 26 176 62 48 56 25 . . . . . 138 138 138 92 Highest-Rated Ally 146 | . . 31 31 9 26 146 31 16 31 25 . . . . . 46 46 46 46 Total Orders 5 | . . 1 3 . . 1 . . . . . . . . . . . . . STAY 2 | . . . 1 . . 1 . . . . . . . . . . . . . FOLLOW 1 | . . . 1 . . . . . . . . . . . . . . . . DROP 1 | . . 1 . . . . . . . . . . . . . . . . . PICKUP 1 | . . . 1 . . . . . . . . . . . . . . . . Ally Attacks 177 | . . . . . 14 6 58 40 25 2 . . . . . 6 1 22 3 Total Damage 2913 | . . . . . 293 257 840 429 531 82 . . . . . 70 . 354 57 Kills 25 | . . . . . 2 3 8 7 2 . . . . . . . . 3 . Allies Corrupted 1 | . . . . . . 1 . . . . . . . . . . . . . Allies Melted . | . . . . . . . . . . . . . . . . . . . . Intel | -11 -10 -10 -10 -9 -8 -8 -8 -8 -8 -8 -6 -6 -5 -4 -4 -4 -4 -4 -4 ------- Run | Yrd Mat Min Exi Min Mat Gar Mat Sto Gar Rec Fac DSF Fac Fac Gar Fac Upp Upp War Robot Analysis Total 14 | . 3 . . . 8 . 1 1 . . . . . 1 . . . . . Derelict Logs Recovered 3 | . . 2 . . . . . . . . . . . . . . 1 . . Drone Launches . | . . . . . . . . . . . . . . . . . . . . Drone Recoveries . | . . . . . . . . . . . . . . . . . . . . Exploration | -11 -10 -10 -10 -9 -8 -8 -8 -8 -8 -8 -6 -6 -5 -4 -4 -4 -4 -4 -4 ------------- Run | Yrd Mat Min Exi Min Mat Gar Mat Sto Gar Rec Fac DSF Fac Fac Gar Fac Upp Upp War Turns Passed 16684 | 114 765 635 455 1114 2266 2572 2238 1198 1080 795 47 375 348 123 806 408 574 388 383 Spaces Moved 10924 | 84 561 606 486 559 1320 1393 1375 789 778 650 43 239 271 105 390 344 463 307 161 Core 12 | 11 1 . . . . . . . . . . . . . . . . . . Treads 346 | 27 . . . . . 319 . . . . . . . . . . . . . Legs 7682 | . . . . . 693 1074 1375 789 778 650 43 239 271 105 390 344 463 307 161 Wheels 903 | 46 268 . . . 589 . . . . . . . . . . . . . . Hover 1981 | . 292 606 486 559 38 . . . . . . . . . . . . . . Flight . | . . . . . . . . . . . . . . . . . . . . Fastest Speed 50 | 50 50 76 76 76 95 110 110 110 110 110 110 110 110 110 110 110 110 110 110 Average Speed 109 | 104 77 76 76 112 117 132 110 110 110 110 110 110 110 110 110 110 110 110 155 Slowest Speed 236 | 160 80 76 76 236 200 200 180 110 110 110 110 110 110 110 110 110 110 180 180 Overloaded Moves . | . . . . . . . . . . . . . . . . . . . . Propulsion Burnouts . | . . . . . . . . . . . . . . . . . . . . Robots Hopped . | . . . . . . . . . . . . . . . . . . . . Cave-ins Triggered . | . . . . . . . . . . . . . . . . . . . . Exploration Rate (%) 62 | 5 94 97 89 92 90 96 97 96 76 98 2 98 14 5 47 11 64 60 20 Regions Visited 19 Branch Regions 8 Pre-discovered Areas 13 | . 2 . 1 . 2 . 1 . . 7 . . . . . . . . . Known Exits Taken 15 | 1 1 1 1 1 1 . 1 1 . 1 1 . 1 1 . 1 1 1 . Unknown Exits Taken . | . . . . . . . . . . . . . . . . . . . . Scrap Searched 7 | . . 1 . 4 . . . . . . . . . . . . 1 1 . Spaces Dug 72 | . . . . . . 1 5 2 5 . . . 1 2 . . 1 . 55 Terrain Destroyed 428 | . . 15 . 19 . 4 5 2 85 . . . 1 2 3 4 12 171 105 Melee 16 | . . . . . . 1 5 2 5 . . . 1 2 . . . . . Projectile 26 | . . . . . . . . . . . . . . . 3 4 12 . 7 AOE 386 | . . 15 . 19 . 3 . . 80 . . . . . . . . 171 98 Terrain Rammed . | . . . . . . . . . . . . . . . . . . . . Walls Destroyed . | . . . . . . . . . . . . . . . . . . . . Machines Disabled . | . . . . . . . . . . . . . . . . . . . . Actions | -11 -10 -10 -10 -9 -8 -8 -8 -8 -8 -8 -6 -6 -5 -4 -4 -4 -4 -4 -4 --------- Run | Yrd Mat Min Exi Min Mat Gar Mat Sto Gar Rec Fac DSF Fac Fac Gar Fac Upp Upp War Total 14510 | 98 813 740 570 1021 1857 1910 1983 1002 893 689 42 313 317 109 643 370 519 342 279 Wait 2302 | 1 177 81 82 436 345 271 484 120 20 14 . 16 36 . 83 11 25 7 93 Move 10905 | 83 560 605 485 558 1319 1391 1374 788 777 649 42 238 270 105 389 343 462 306 161 Hop . | . . . . . . . . . . . . . . . . . . . . Pick Up 38 | 2 2 5 1 2 4 5 3 1 3 . . 1 1 . 4 1 1 1 1 Fast Attach 91 | 7 5 2 . 2 23 17 5 3 2 1 . 7 2 1 9 1 1 3 . Attach 19 | . . 1 . 1 4 2 3 . 1 . . . . . 2 . 1 2 2 Detach 10 | . . . . . 3 2 3 . . . . . 1 . . . 1 . . Swap 19 | 1 . 1 . 2 4 2 1 . 1 . . . 1 . 2 1 3 . . Drop 105 | . 11 3 1 6 20 23 6 4 5 . . 7 3 1 7 2 2 1 3 Fire 343 | 4 43 28 1 13 86 103 2 . 3 . . . . . 19 3 10 13 15 Melee 325 | . . . . . . 16 64 69 53 20 . 27 3 2 71 . . . . Ram . | . . . . . . . . . . . . . . . . . . . . Kick 1 | . . . . . . . . . . . . . . . . 1 . . . Crush . | . . . . . . . . . . . . . . . . . . . . Escape Stasis 23 | . . . . . . 10 . 5 8 . . . . . . . . . . Rewire 14 | . . 3 . . 1 10 . . . . . . . . . . . . . Trap 20 | . . . . . . . 16 . . . . . . . . . . . 4 Miscellaneous 295 | . 15 11 . 1 48 58 22 12 20 5 . 17 . . 57 7 13 9 . Route ------- -11/Scrapyard -10/Materials (discovered 5 exits: *Mat x3 / *Min x2) -10/Mines (discovered 4 exits: *Mat x2 / *Exi / Sub) -10/Exiles (discovered 2 exits: *Min x2) -9/Mines (discovered 2 exits: *Mat x2) -8/Materials (discovered 6 exits: *Fac x3 / *Sto x2 / Gar) -8/Garrison (discovered 3 exits: *Mat x3) -8/Materials (discovered 5 exits: *Fac x3 / *Sto / Gar) -8/Storage (discovered 3 exits: *Fac / *Rec / Gar) -8/Garrison (discovered 3 exits: *Rec x3) -8/Recycling -6/Factory -6/DSF -5/Factory -4/Factory -4/Garrison -4/Factory (discovered 5 exits: *Upp x2 / Ext x2 / Arm) -4/Upper Caves -4/Upper Caves -4/Warlord History --------- Turn | Location | Event 1 | -11/Scrapyard | Upgraded with Propulsion slot (x1) 1 | -11/Scrapyard | Upgraded with Utility slot (x1) 1 | -11/Scrapyard | Upgraded with Weapon slot (x1) 30 | -11/Scrapyard | Identified exit to Materials 30 | -11/Scrapyard | Discovered exit to Materials (range 16) 115 | -11/Scrapyard | Entered Materials 120 | -10/Materials | Identified exit to Materials 245 | -10/Materials | Identified exit to Mines 316 | -10/Materials | Build established: Hacker-Mutant 417 | -10/Materials | Upgraded with Utility slot (x1) 443 | -10/Materials | Reached level 2 826 | -10/Materials | Build established: Hacker-Scout 880 | -10/Materials | Entered Mines 930 | -10/Mines | Discovered exit to Materials (range 10) 1027 | -10/Mines | Identified exit to Exiles 1031 | -10/Mines | A weapon hastily lodged in a ceiling crevice suddenly fell to the ground 1053 | -10/Mines | YI-UF0 nonchalantly dropped a Grenade Launcher on the ground 1099 | -10/Mines | Murdered YI-UF0 1099 | -10/Mines | Destroyed YI-UF0 1104 | -10/Mines | Upgraded with Utility slot (x2) 1104 | -10/Mines | Found Corrupted Prototype Storage 1154 | -10/Mines | Assembled infested the area 1175 | -10/Mines | Reached level 3 1248 | -10/Mines | Identified exit to Subcaves 1248 | -10/Mines | Discovered exit to Subcaves (range 4) 1293 | -10/Mines | Received a Mining Laser from a helpful Derelict 1391 | -10/Mines | Deemed a non-threat by the Exiles lab entrance 1425 | -10/Mines | Discovered exit to Materials (range 10) 1515 | -10/Mines | Entered Exiles 1515 | -10/Exiles | Accompanied by 2 allies 1516 | -10/Exiles | Identified exit to Mines 1562 | -10/Exiles | Met 8R-AWN 1575 | -10/Exiles | Met EX-HEX 1603 | -10/Exiles | Met EX-DEC 1621 | -10/Exiles | Visited The Gauntlet 1708 | -10/Exiles | Learned location of Zion (-6) 1723 | -10/Exiles | Met EX-BIN 1734 | -10/Exiles | Aligned with FarCom system 1735 | -10/Exiles | Given EX-Vault access code 1754 | -10/Exiles | Opened EX-Vault 1832 | -10/Exiles | Warned to stay clear of 0b10 Research branches 1942 | -10/Exiles | Attacked by the Exiles 1970 | -10/Exiles | Stole two prototypes: Skeleton Box, AWS/Gauss 1970 | -10/Exiles | Entered Mines 1970 | -9/Mines | Accompanied by 1 ally 2174 | -9/Mines | Reached level 4 2432 | -9/Mines | Identified exit to Materials 2432 | -9/Mines | Discovered exit to Materials (range 14) 2466 | -9/Mines | Found a damaged Exp. Sensor Array with a note attached 2470 | -9/Mines | Found Prototype Device 2470 | -9/Mines | Identified Exp. Sensor Array 2558 | -9/Mines | Received a Rocket Launcher from a helpful Derelict 2564 | -9/Mines | Discovered exit to Materials (range 11) 2812 | -9/Mines | Identified YI-UF0's Bottomless Matter Pit 2822 | -9/Mines | Found AWS/Gauss 2829 | -9/Mines | Found Skeleton Box 2851 | -9/Mines | Build established: Hacker-Skirmisher 3084 | -9/Mines | Entered Materials 3086 | -8/Materials | Reached level 5 3086 | -8/Materials | Reached level 6 3100 | -8/Materials | Upgraded with Utility slot (x2) 3418 | -8/Materials | Repaired Broken Enh. Flamer 3617 | -8/Materials | Identified exit to Storage 3617 | -8/Materials | Discovered exit to Storage (range 11) 3644 | -8/Materials | Reached level 7 3648 | -8/Materials | Identified exit to Factory 3648 | -8/Materials | Discovered exit to Factory (range 9) 3928 | -8/Materials | Core integrity fell below 50% 3957 | -8/Materials | Upgraded with Weapon slot (x1) 3975 | -8/Materials | Discovered exit to Factory (range 17) 4111 | -8/Materials | Identified exit to Garrison 4118 | -8/Materials | Upgraded with Power slot (x1) 4186 | -8/Materials | Garrison activated, responded to threat 4308 | -8/Materials | Reached level 8 4436 | -8/Materials | Build established: Hacker-Tank 4438 | -8/Materials | Discovered exit to Factory (range 7) 4928 | -8/Materials | Reached level 9 5158 | -8/Materials | Repaired Broken Cld. Pulse Rifle 5238 | -8/Materials | Upgraded with Utility slot (x1) 5350 | -8/Materials | Entered Garrison 5388 | -8/Garrison | Triggered checkpoint 5544 | -8/Garrison | Reached level 10 5568 | -8/Garrison | Upgraded with Utility slot (x1) 5595 | -8/Garrison | Build established: Wizard-Tank 5630 | -8/Garrison | Identified exit to Materials 5630 | -8/Garrison | Discovered exit to Materials (range 15) 5670 | -8/Garrison | Triggered checkpoint 5735 | -8/Garrison | Garrison Relay disabled 5737 | -8/Garrison | Garrison Relay disabled 5777 | -8/Garrison | Garrison Relay disabled 5777 | -8/Garrison | Reached level 11 5842 | -8/Garrison | Garrison Relay disabled 5954 | -8/Garrison | Triggered checkpoint 5977 | -8/Garrison | Garrison Relay disabled 6036 | -8/Garrison | Discovered exit to Materials (range 13) 6066 | -8/Garrison | Triggered checkpoint 6090 | -8/Garrison | Triggered checkpoint 6214 | -8/Garrison | Triggered checkpoint 6317 | -8/Garrison | Discovered exit to Materials (range 11) 6354 | -8/Garrison | Triggered checkpoint 6742 | -8/Garrison | Build established: Hacker-Tank 6763 | -8/Garrison | Discovered exit to Materials (range 24) 6763 | -8/Garrison | Discovered exit to Materials (range 84) 6763 | -8/Garrison | Discovered exit to Materials (range 45) 6780 | -8/Garrison | Learned Materials security intel 7039 | -8/Garrison | Remotely autohacked Sealed Heavy Doors 7040 | -8/Garrison | Rescued HV-R5K 7045 | -8/Garrison | Reached level 12 7137 | -8/Garrison | Murdered HV-R5K 7137 | -8/Garrison | Destroyed HV-R5K 7186 | -8/Garrison | Found Corrupted Prototype Slashing Weapon 7186 | -8/Garrison | Identified Centrium Greatsword 7446 | -8/Garrison | Build established: Hacker-Gladiator 7584 | -8/Garrison | Installed Relay Interface Framework 7680 | -8/Garrison | Triggered checkpoint 7754 | -8/Garrison | Rescued a captive Derelict 7755 | -8/Garrison | Rescued a captive Derelict 7922 | -8/Garrison | Entered Materials 7922 | -8/Materials | Accompanied by 2 allies 8310 | -8/Materials | Discovered exit to Factory (range 4) 8555 | -8/Materials | Reached level 13 8584 | -8/Materials | Upgraded with Utility slot (x1) 9012 | -8/Materials | Repaired Broken Imp. Focal Shield 9604 | -8/Materials | Identified exit to Garrison 10160 | -8/Materials | Entered Storage 10166 | -8/Storage | Identified exit to Recycling 10467 | -8/Storage | Found Prototype Launcher 10467 | -8/Storage | Identified Scatter Rocket Array 10504 | -8/Storage | Identified exit to Garrison 10832 | -8/Storage | Reached level 14 11169 | -8/Storage | Discovered exit to Factory (range 12) 11358 | -8/Storage | Entered Garrison 11358 | -8/Garrison | Accompanied by 1 ally 11376 | -8/Garrison | Triggered checkpoint 11540 | -8/Garrison | Triggered checkpoint 11638 | -8/Garrison | Learned Recycling security intel 11701 | -8/Garrison | Discovered exit to Recycling (range 5) 11728 | -8/Garrison | Rescued a captive Derelict 11729 | -8/Garrison | Rescued a captive Derelict 11796 | -8/Garrison | Triggered checkpoint 11858 | -8/Garrison | Phase Generator disabled 11956 | -8/Garrison | Triggered checkpoint 12082 | -8/Garrison | Discovered exit to Recycling (range 14) 12123 | -8/Garrison | Expanded RIF knowledge: Coupler Efficiency 12124 | -8/Garrison | Triggered checkpoint 12166 | -8/Garrison | Discovered exit to Recycling (range 78) 12166 | -8/Garrison | Discovered exit to Recycling (range 57) 12166 | -8/Garrison | Discovered exit to Recycling (range 22) 12237 | -8/Garrison | Learned Recycling security intel 12438 | -8/Garrison | Entered Recycling 12438 | -8/Recycling | Accompanied by 1 ally 12563 | -8/Recycling | P-60 Hacker assimilated allied 96-V3P(l) 12564 | -8/Recycling | Reached level 15 12567 | -8/Recycling | Upgraded with Utility slot (x1) 12652 | -8/Recycling | Destroyed 10 combat bots 12674 | -8/Recycling | Identified exit to Factory 12674 | -8/Recycling | Discovered exit to Factory (range 16) 13233 | -8/Recycling | Entered Factory 13235 | -6/Factory | Reached level 16 13279 | -6/Factory | Identified exit to DSF 13280 | -6/Factory | Entered DSF 13282 | -6/DSF | Reached level 17 13287 | -6/DSF | Upgraded with Utility slot (x1) 13309 | -6/DSF | Additional patrols routed to DSF 13425 | -6/DSF | Identified exit to Factory 13425 | -6/DSF | Discovered exit to Factory (range 14) 13655 | -6/DSF | Entered Factory 13657 | -5/Factory | Reached level 18 13956 | -5/Factory | Identified exit to Factory 13956 | -5/Factory | Discovered exit to Factory (range 16) 14003 | -5/Factory | Entered another Factory area 14005 | -4/Factory | Reached level 19 14028 | -4/Factory | Found Prototype Launcher 14028 | -4/Factory | Identified Com. Tesla Bomb Launcher 14126 | -4/Factory | Identified exit to Garrison 14126 | -4/Factory | Entered Garrison 14128 | -4/Garrison | Triggered checkpoint 14128 | -4/Garrison | Reached level 20 14162 | -4/Garrison | Triggered checkpoint 14190 | -4/Garrison | Expanded RIF knowledge: Zone Cloak 14276 | -4/Garrison | Upgraded with Utility slot (x1) 14296 | -4/Garrison | Build established: Wizard-Gladiator 14428 | -4/Garrison | Reached level 21 14506 | -4/Garrison | Triggered checkpoint 14506 | -4/Garrison | Spotted B-86 Titan 14569 | -4/Garrison | Core integrity fell below 50% 14620 | -4/Garrison | Core integrity fell below 20% 14640 | -4/Garrison | Destroyed B-86 Titan 14717 | -4/Garrison | Reached level 22 14739 | -4/Garrison | Destroyed 7 combat bots 14754 | -4/Garrison | Learned Factory security intel 14918 | -4/Garrison | Identified exit to Factory 14918 | -4/Garrison | Discovered exit to Factory (range 11) 14932 | -4/Garrison | Entered Factory 14953 | -4/Factory | Allied Derelicts emerged from ambush trap array 14983 | -4/Factory | Build established: Wizard-Tank 15187 | -4/Factory | Identified exit to Upper Caves 15187 | -4/Factory | Identified exit to Extension 15187 | -4/Factory | Identified exit to Armory 15242 | -4/Factory | Fabricated Adv. Signal Interpreter (x2) 15340 | -4/Factory | Entered Upper Caves 15340 | -4/Upper Caves | Accompanied by 3 allies 15342 | -4/Upper Caves | Reached level 23 15425 | -4/Upper Caves | Learned Research garrison access intel 15548 | -4/Upper Caves | Attacked by a delusional Derelict stockpiling parts 15630 | -4/Upper Caves | Attracted the attention of an 0b10 checkpoint 15743 | -4/Upper Caves | Acquired the password to a Derelict Tinkerer's latest research 15751 | -4/Upper Caves | Found Prototype Special Weapon 15752 | -4/Upper Caves | Identified Molecular Deconstructor 15782 | -4/Upper Caves | Identified exit to Upper Caves 15782 | -4/Upper Caves | Discovered exit to Upper Caves (range 5) 15914 | -4/Upper Caves | Entered another Upper Caves area 15914 | -4/Upper Caves | Accompanied by 3 allies 16067 | -4/Upper Caves | Attracted the attention of an 0b10 checkpoint 16077 | -4/Upper Caves | Reached level 24 16099 | -4/Upper Caves | Upgraded with Utility slot (x1) 16250 | -4/Upper Caves | Identified exit to Warlord 16250 | -4/Upper Caves | Discovered exit to Warlord (range 14) 16250 | -4/Upper Caves | Spotted WJ-PCE(f) 16250 | -4/Upper Caves | Spotted KN-ZS5(f) 16252 | -4/Upper Caves | Encountered a Master Thief 16252 | -4/Upper Caves | Encountered a Master Thief 16252 | -4/Upper Caves | Spotted MM-ND1(f) 16253 | -4/Upper Caves | Encountered a Master Thief 16253 | -4/Upper Caves | Spotted MM-ZLY(f) 16253 | -4/Upper Caves | Molecular Deconstructor stolen by Master Thief 16253 | -4/Upper Caves | Exp. Sensor Array stolen by Master Thief 16254 | -4/Upper Caves | Encountered a Master Thief 16254 | -4/Upper Caves | Biometal Leg stolen by Master Thief 16255 | -4/Upper Caves | Destroyed MM-ND1(f) 16257 | -4/Upper Caves | Micro-nuke Launcher stolen by Master Thief 16261 | -4/Upper Caves | Allies destroyed MM-ZLY(f) 16302 | -4/Upper Caves | Entered Warlord 16302 | -4/Warlord | Accompanied by 2 allies 16627 | -4/Warlord | RIF detected upon attempting to enter Warlord's base 16627 | -4/Warlord | Attacked by Warlord forces 16663 | -4/Warlord | Spotted 9J-1NH(B) 16663 | -4/Warlord | Spotted CU-C5W(B) 16685 | -4/Warlord | Destroyed by 0Z-M9U(g) with Heavy Beamcaster Last Messages --------------- 16670_ B8-FQT(g) destroyed. 16671_ WK-TEQ(l) destroyed. 16671_ Switching to secondary target: 9J-1NH(B). 16672_ Power failure, Lgt. Antimatter Reactor shutdown. 16672_ Overheating: Energy bleed (-2). 16672_ Critical hit (Burn: +37). 16673_ Penetrated by Slug. 16673_ Knocked back. 16674_ Acquired 4 matter. 16675_ Overheating: Biometal Leg damaged (-123). 16675_ Overheating: Hacking Suite damaged (-5). 16676_ Overheating: Core damaged (-105). 16680_ Power failure, Lgt. Antimatter Reactor shutdown. 16681_ Overheating: Energy bleed (-1). 16681_ BD-0R3(g) knocked back. 16683_ Overheating: Hvy. Beamcaster damaged (-37). 16683_ Overheating: Hacking Suite damaged (-6). 16684_ Overheating: Adv. Signal Interpreter damaged (-15). 16684_ Overheating: Adv. System Restoration Module damaged (-9). 16684_ BD-0R3(g) suffers critical hit (Destroy). Map ----- +----------------------------------------------------+ | ?????????????????????????????????????????????????? | | ?????????????????????????????????????????????????? | | ?????????????????????????????????????????????????? | | ?????????????????????????????????????????????????? | | ?????????????????????????????????????????????????? | | ????????????????????????????????????????? ???????? | | ?????????????????????????????????????????? ??????? | | ??????????????????????????????????????????? ?????? | | ???????????????????????????????????????????# ????? | | ???????????????????????????????????????????# ??## | | ???????????????????????????????????????????? ?? | | ????????????????????????????????????????????? ### | | ????????????#+####???????????????????????????? | | ???????????? ????????"???????????????????# | | ???????????# ????????""??????????????????# | | ???????????# ??????#""#??????????????????# | | ?????????? # #?????#""#???????????????????# | | ?????????? ######""#####???????????????? | | ?????????? # "" "############????? | | ????????? # BB # "" """"""""""""#????? | | ?????????## BB ; "" """"""""""""#?#### | | ???????? g + % ### # | | ???????? ; ! % + ^^ | | ???????? b; %% + ^^ | | ???????? *;g%! #### | | ?????????# %%# @ "" """"""""""""#??## | | ?????????# =/; "" """"""""""""#???# | | ?????????## g ; "" "############???# | | ??????????# #= gg ######""#####?????????????## | | ?????????? %%= g ??????#""#????????????????## | | ??????????# * ??????#""#????????????????# | | ??????????? ???????#""#???????????????## # | | ??????????? ??????????"????????????????# # | | ???????????? ????????????????????????????# # | | ????????????#####????????????????????????????# ## | | ?????????????????????????????????????????????# #? | | ????????????????????????????????????????????## ## | | ???????????????????????????????####????????## # | | ???????????????????????????????# #???????# | | ???????????????????????????????# ???##### ## | | ???????????????????????????????# ?## # ##?# | | ???????????????????????????????# # #??# | | ???????????????????????????????# ##?? | | ???????????????????????????????# # ## #?? | | ???????????????????????????????# ####### #?? | | ???????????????????????????????# #?????# ##?? | | ???????????????????????????????# ??????#####??? | | ???????????????????????????????# ##??????????????? | | ???????????????????????????????##????????????????? | | ?????????????????????????????????????????????????? | +----------------------------------------------------+ Best States ------------- Heat Dissipation 70 Energy Generation 41 Energy Capacity 365 Matter Stores 1800 Matter Capacity 1800 Sight Range 21 Robot Scan Range 20 Terrain Scan Range 16 Terrain Scan Density 110 Power Amplification 20 Armor Coverage 300 Resistance: KI 60 Resistance: TH 60 Resistance: EX 85 Resistance: EM 35 Resistance: I 35 Resistance: S 35 Resistance: P 35 Melee Speed Boost 20 Phase Shifting 10 Evasion (%) 65 Targeting Accuracy 20 Recoil Reduction 2 Offensive Hacking 50 Defensive Hacking 30 Relay Coupler Types 1 Relay Coupler Value 136 Authchip Count 1 Trap Extractor Capacity 8 Item Schematics ----------------- Wheel | -10/Materials | Hacked EM Pulse Gun | -10/Materials | Hacked Enh. Flamer | -8/Materials | Scanalyzed Exp. Sensor Array | -8/Materials | Scanalyzed Plasma Cutter | -8/Materials | Scanalyzed Hacking Suite | -8/Materials | Hacked Cld. Ion Engine | -8/Materials | Hacked System Shield | -8/Materials | Hacked Arm. Wheel | -8/Materials | Hacked Machine Analyzer | -8/Materials | Hacked Imp. Light Armor Plating | -8/Materials | Hacked Airjet | -8/Materials | Hacked Cryofiber Web | -8/Materials | Hacked Cooling System | -8/Materials | Hacked Trap Extractor | -8/Materials | Hacked Trap Scanner | -8/Materials | Hacked Field Recycling Unit | -8/Materials | Hacked Shield Generator | -8/Materials | Hacked Salvage Targeting Computer | -8/Materials | Hacked Hardlight Generator | -8/Materials | Hacked Lgt. Deuterium Engine | -8/Materials | Hacked EM Pulse Cannon | -8/Materials | Hacked Particle Charger | -8/Materials | Hacked Imp. Aluminum Leg | -8/Materials | Hacked Titanium Leg | -8/Materials | Hacked Imp. Salvage Targeting Computer | -8/Materials | Hacked Imp. Shield Generator | -8/Materials | Hacked Powered Armor | -8/Materials | Hacked Cld. Pulse Rifle | -8/Materials | Scanalyzed Centrium Greatsword | -8/Materials | Scanalyzed Actuator Array | -8/Materials | Hacked Biometal Leg | -8/Materials | Scanalyzed Adv. System Restoration Module | -8/Materials | Scanalyzed Phase Shifter | -8/Storage | Hacked Field Laser | -8/Storage | Hacked Com. Battery | -8/Storage | Hacked Adv. Signal Interpreter | -8/Recycling | Hacked Core Analyzer | -8/Recycling | Hacked Weapon Cycler | -8/Recycling | Hacked Lgt. Angular Momentum Engine | -8/Recycling | Hacked Imp. Particle Charger | -8/Recycling | Hacked Shock Absorption System | -8/Recycling | Hacked Adv. ECM Suite | -8/Recycling | Hacked Armor Integrity Analyzer | -8/Recycling | Hacked Imp. Hardlight Generator | -8/Recycling | Hacked Lightning Gun | -8/Recycling | Hacked Exp. Heat Sink | -5/Factory | Scanalyzed Robot Schematics ------------------ M-13 Machinist | -10/Materials | Hacked O-16 Technician | -10/Materials | Hacked G-34 Mercenary | -10/Materials | Hacked S-10 Pest | -10/Materials | Hacked H-55 Commando | -8/Materials | Hacked I-36 Angel | -8/Materials | Hacked L-31 Rogue | -8/Storage | Hacked B-36 Bruiser | -8/Storage | Hacked G-47 Trooper | -8/Recycling | Hacked W-25 Informer | -8/Recycling | Hacked Fabricated ------------ Adv. Signal Interpreter | x2 | -4/Factory Alien Tech Used ----------------- None Achievements -------------- None Challenges ------------ None RPGLIKE | -11 -10 -10 -10 -9 -8 -8 -8 -8 -8 -8 -6 -6 -5 -4 -4 -4 -4 -4 -4 --------- Run | Yrd Mat Min Exi Min Mat Gar Mat Sto Gar Rec Fac DSF Fac Fac Gar Fac Upp Upp War Levels Raised 23 | . 1 1 . 1 5 3 1 1 . 1 1 1 1 1 3 . 1 1 . XP Earned 41182 | 6000 2384 950 350 1193 7321 4676 1770 1235 760 624 1560 1814 1535 1949 3813 714 1071 1219 244 XP Spent 40105 | 2250 850 4250 . . 9200 3850 2900 . . 3200 . 3500 . . 5405 . . 4700 . Upgrades 35 | 5 2 4 . . 12 2 1 . . 1 . 1 . . 5 . . 2 . Power Slot 1 | . . . . . 1 . . . . . . . . . . . . . . Propulsion Slot 1 | 1 . . . . . . . . . . . . . . . . . . . Utility Slot 13 | 1 1 2 . . 3 1 1 . . 1 . 1 . . 1 . . 1 . Weapon Slot 2 | 1 . . . . 1 . . . . . . . . . . . . . . Core Integrity 3 | . . . . . . . . . . . . . . . 3 . . . . Mass Support 2 | . . . . . 1 . . . . . . . . . . . . 1 . Inventory Capacity 6 | 2 . 2 . . . 1 . . . . . . . . 1 . . . . Sight Range 1 | . . . . . 1 . . . . . . . . . . . . . . Terrain Scan Density 1 | . 1 . . . . . . . . . . . . . . . . . . Ranged Accuracy 1 | . . . . . 1 . . . . . . . . . . . . . . Hack Attack % 2 | . . . . . 2 . . . . . . . . . . . . . . Hack Defense % 2 | . . . . . 2 . . . . . . . . . . . . . . Protomatter Created 3327 | . 108 188 . 6 414 607 189 382 351 127 . 115 . . 527 122 87 65 39 Integrity Restored 5443 | . 250 154 . 18 1005 968 252 181 321 102 . 352 . . 1295 126 251 168 . Core 3802 | . 181 115 . 18 667 445 192 142 234 102 . 235 . . 1267 76 67 61 . Parts 1641 | . 69 39 . . 338 523 60 39 87 . . 117 . . 28 50 184 107 . Protomatter Decayed 1517 | . 7 43 . . 101 386 223 444 181 53 . 1 . . . 78 . . . Game ------ Seed DefenseBladeMegatreads Manual? 0 Play Time 03:18:35 Cumulative 495.9 hours Start 2024.01.25 @ 21:46:31 End 2024.01.26 @ 12:21:15 Sessions 2 Manual Loads 0 Difficulty Explorer Special Mode Winter2019/RPGLIKE Game No. 190 Rogue 183 Adventurer 3 Explorer 4 Win Type - Total 9 Types 5/2/0/1/0/1/0/0/0 Lore% 82 Gallery% 89 Achievement% 79 Wizard Run 0 Options --------- ASCII 0 Keyboard 0 Movement Numpad Keybinds 0 Fullscreen 1 Font 18/SmallcapsGlow Map View 76x50 Zoom Use 0% Tactical HUD 1 Map Filters NONE Filters NONE Steam 1 RUN: d13e3d4b-3668-4285-b80c-e8dbe662e801